fUSD/lending_fUSD_20250104
["ID","MTS","AMOUNT","RATE_DAILY","PERIOD"]
[347621880,1735966244068,-500.0,9.803e-05,2]
[347621881,1735966244077,-500.0,9.803e-05,2]
[347621882,1735966244086,-500.0,9.803e-05,2]
[347621883,1735966244095,-500.0,9.803e-05,2]
[347621884,1735966244106,-500.0,9.803e-05,2]
[347621885,1735966244115,-500.0,9.803e-05,2]
[347621886,1735966244125,-500.0,9.803e-05,2]
[347621887,1735966244135,-500.0,9.803e-05,2]
[347621888,1735966244146,-500.0,9.803e-05,2]
[347621889,1735966244156,-2163.86,9.803e-05,2]
[347621890,1735966244166,-500.0,9.803e-05,2]
[347621891,1735966244176,-500.0,9.803e-05,2]
[347621892,1735966244186,-500.0,9.803e-05,2]
[347621893,1735966244195,-526.54,9.803e-05,2]
[347621894,1735966244205,-500.0,9.803e-05,2]
[347621895,1735966244215,-928.63,9.803e-05,2]
[347621896,1735966244225,-500.0,9.803e-05,2]
[347621897,1735966244235,-500.0,9.803e-05,2]
[347621898,1735966244246,-500.0,9.803e-05,2]
[347621899,1735966244256,-623.77,9.803e-05,2]
[347621900,1735966244265,-500.0,9.803e-05,2]
[347621901,1735966244275,-541.54,9.803e-05,2]
[347621902,1735966244285,-1274.94,9.803e-05,2]
[347621903,1735966244295,-500.0,9.803e-05,2]
[347621904,1735966244306,-500.0,9.803e-05,2]
[347621905,1735966244316,-500.0,9.803e-05,2]
[347621906,1735966244326,-500.0,9.803e-05,2]
[347621907,1735966244335,-500.0,9.803e-05,2]
[347621908,1735966244345,-790.81,9.803e-05,2]
[347621909,1735966244356,-500.0,9.803e-05,2]
[347621910,1735966244368,-500.0,9.803e-05,2]
[347621911,1735966244379,-614.74,9.803e-05,2]
[347621912,1735966244390,-500.0,9.803e-05,2]
[347621913,1735966244399,-500.0,9.803e-05,2]
[347621914,1735966244409,-555.83,9.803e-05,2]
[347621915,1735966244419,-500.0,9.803e-05,2]
[347621916,1735966244430,-579.75,9.803e-05,2]
[347621917,1735966244439,-500.0,9.803e-05,2]
[347621918,1735966244451,-500.0,9.803e-05,2]
[347621919,1735966244463,-618.68,9.803e-05,2]
[347621920,1735966244475,-1222.42,9.803e-05,2]
[347621921,1735966244487,-500.0,9.803e-05,2]
[347621922,1735966244496,-500.0,9.803e-05,2]
[347621923,1735966244505,-500.0,9.803e-05,2]
[347621924,1735966244515,-500.0,9.803e-05,2]
[347621925,1735966244528,-500.0,9.803e-05,2]
[347621926,1735966244538,-1837.19,9.803e-05,2]
[347621927,1735966244547,-500.0,9.803e-05,2]
[347621928,1735966244556,-500.0,9.803e-05,2]
[347621929,1735966244566,-1167.79,9.803e-05,2]
[347621930,1735966244575,-500.0,9.803e-05,2]
[347621931,1735966244583,-500.0,9.803e-05,2]
[347621932,1735966244592,-500.0,9.803e-05,2]
[347621933,1735966244602,-882.65,9.803e-05,2]
[347621934,1735966244613,-500.0,9.803e-05,2]
[347621935,1735966244623,-1201.44,9.803e-05,2]
[347621936,1735966244633,-570.25,9.803e-05,2]
[347621937,1735966244645,-500.0,9.803e-05,2]
[347621938,1735966244655,-603.86,9.803e-05,2]
[347621939,1735966244666,-638.59,9.803e-05,2]
[347621940,1735966244675,-500.0,9.803e-05,2]
[347621941,1735966244684,-392.204183,9.803e-05,2]
[347621942,1735966244694,-500.0,9.803e-05,2]
[347621943,1735966244703,-500.0,9.803e-05,2]
[347621944,1735966244712,-1830.53,9.803e-05,2]
[347621945,1735966244722,-603.34,9.803e-05,2]
[347621946,1735966244731,-508.07,9.803e-05,2]
[347621947,1735966244740,-761.96,9.803e-05,2]
[347621948,1735966244749,-292.608143,9.803e-05,2]
[347621949,1735966244759,-834.71,9.803e-05,2]
[347621950,1735966244767,-531.18,9.803e-05,2]
[347621951,1735966244776,-1939.61,9.803e-05,2]
[347621952,1735966244788,-500.0,9.803e-05,2]
[347621953,1735966244797,-1276.64,9.803e-05,2]
[347621954,1735966244806,-601.16,9.803e-05,2]
[347621955,1735966244815,-409.41554756,9.803e-05,2]
[347621956,1735966244824,-528.07,9.803e-05,2]
[347621957,1735966244834,-500.0,9.803e-05,2]
[347621958,1735966244843,-2295.1,9.803e-05,2]
[347621959,1735966244852,-500.0,9.803e-05,2]
[347621960,1735966244862,-1003.31,9.803e-05,2]
[347621961,1735966244871,-500.0,9.803e-05,2]
[347621962,1735966244880,-500.0,9.918e-05,2]
[347621963,1735966244889,-1000.0,0.0001,2]
[347621964,1735966244899,-3000.0,0.0001,2]
[347621965,1735966244909,-500.24,0.0001001,2]
[347621966,1735966244918,-500.0,0.00010075,2]
[347621967,1735966244927,-500.0,0.00010075,2]
[347621968,1735966244936,-500.0,0.00010075,2]
[347621969,1735966244946,-500.0,0.00010075,2]
[347621970,1735966244955,-500.0,0.00010075,2]
[347621971,1735966244964,-500.0,0.00010075,2]
[347621972,1735966244973,-500.0,0.00010075,2]
[347621973,1735966244982,-500.0,0.00010075,2]
[347621974,1735966244991,-325.34255108,0.00010075,2]
[347621975,1735966245000,-500.0,0.00010075,2]
[347621976,1735966245010,-500.0,0.00010075,2]
[347621977,1735966245020,-500.0,0.00010075,2]
[347621978,1735966245030,-567.799032,0.00010075,2]
[347621979,1735966245039,-500.0,0.00010075,2]
[347621980,1735966245048,-381.79029741,0.00010075,2]
[347621981,1735966245058,-500.0,0.00010075,2]
[347621982,1735966245067,-500.0,0.00010075,2]
[347621983,1735966245076,-500.0,0.00010075,2]
[347621984,1735966245085,-500.0,0.00010075,2]
[347621985,1735966245096,-500.0,0.00010075,2]
[347621986,1735966245106,-500.0,0.00010075,2]
[347621987,1735966245115,-500.0,0.00010075,2]
[347621988,1735966245124,-500.0,0.00010075,2]
[347621989,1735966245133,-500.0,0.00010075,2]
[347621990,1735966245142,-500.0,0.00010075,2]
[347621991,1735966245300,-500.0,0.00010075,2]
[347621992,1735966245314,-251.27353016,0.00010075,2]
[347621993,1735966245324,-500.0,0.00010075,2]
[347621994,1735966245334,-422.99531246,0.00010075,2]
[347621995,1735966245344,-1823.85,0.00010075,2]
[347621996,1735966245353,-500.0,0.00010075,2]
[347621997,1735966245362,-766.27,0.00010075,2]
[347621998,1735966245371,-500.0,0.00010075,2]
[347621999,1735966245384,-500.0,0.00010075,2]
[347622000,1735966245394,-501.62,0.00010075,2]
[347622001,1735966245403,-500.0,0.00010075,2]
[347622002,1735966245412,-500.0,0.00010075,2]
[347622003,1735966245422,-1793.54,0.00010075,2]
[347622004,1735966245431,-1299.25,0.00010075,2]
[347622005,1735966245441,-500.0,0.00010075,2]
[347622006,1735966245450,-500.0,0.00010075,2]
[347622007,1735966245461,-500.0,0.00010075,2]
[347622008,1735966245470,-500.0,0.00010075,2]
[347622009,1735966245479,-500.0,0.00010075,2]
[347622010,1735966245488,-1554.84,0.00010075,2]
[347622011,1735966245497,-500.0,0.00010075,2]
[347622012,1735966245506,-500.0,0.00010075,2]
[347622013,1735966245515,-500.0,0.00010075,2]
[347622014,1735966245524,-500.0,0.00010075,2]
[347622015,1735966245534,-500.0,0.00010075,2]
[347622016,1735966245543,-500.0,0.00010075,2]
[347622017,1735966245553,-500.0,0.00010075,2]
[347622018,1735966245562,-742.64,0.00010075,2]
[347622019,1735966245571,-500.0,0.00010075,2]
[347622020,1735966245580,-500.0,0.00010075,2]
[347622021,1735966245590,-1087.16,0.00010075,2]
[347622022,1735966245599,-202.80562846,0.00010075,2]
[347622023,1735966245609,-554.73,0.00010075,2]
[347622024,1735966245618,-500.0,0.00010075,2]
[347622025,1735966245628,-500.0,0.00010075,2]
[347622026,1735966245637,-554.24,0.00010075,2]
[347622027,1735966245646,-730.51,0.00010075,2]
[347622028,1735966245656,-2271.59,0.00010076,2]
[347622029,1735966245665,-1294.66,0.00010076,2]
[347622030,1735966245675,-6134.59,0.00010076,2]
[347622031,1735966245684,-2377.20968318,0.00010076,2]
[347622032,1735966245732,-699.5899999,0.00010076,2]
[347622033,1735966245743,-424.49932413,0.00010076,2]
[347622034,1735966245754,-31.32099279,0.00010076,2]
[347622035,1735966245763,-469.25728346,0.00010076,2]
[347622036,1735966245775,-30.74271654,0.00010076,2]
[347622037,1735966245784,-2636.97,0.00010076,2]
[347622038,1735966245793,-1286.10655801,0.00010076,2]
[347622039,1735966245805,-390.85344199,0.00010076,2]
[347622040,1735966245815,-2330.42981313,0.00010076,2]
[347622044,1735966246224,-500.0,9.529e-05,2]
[347622045,1735966246234,-466.88442286,9.529e-05,2]
[347622046,1735966246243,-232.51557714,9.529e-05,2]
[347622047,1735966246266,-267.48442286,9.529e-05,2]
[347622048,1735966246275,-501.77903719,9.529e-05,2]
[347622049,1735966246284,-369.01857644,9.803e-05,2]
[347622050,1735966246302,-130.98142356,9.803e-05,2]
[347622051,1735966246311,-500.0,9.803e-05,2]
[347622052,1735966246320,-1885.54018687,0.00010076,2]
[347622053,1735966246330,-765.64,0.00010076,2]
[347622054,1735966246339,-645.53,0.00010076,2]
[347622055,1735966246348,-500.0,0.00010077,2]
[347622056,1735966246357,-173.05752836,0.00010077,2]
[347622057,1735966246369,-326.94247164,0.00010077,2]
[347622058,1735966246380,-500.0,0.00010077,2]
[347622059,1735966246391,-500.0,0.00010077,2]
[347622060,1735966246402,-500.0,0.00010077,2]
[347622061,1735966246412,-500.0,0.00010077,2]
[347622062,1735966246426,-174.5022013,0.00010077,2]
[347622063,1735966246436,-500.0,0.00010077,2]
[347622064,1735966246445,-500.0,0.00010077,2]
[347622065,1735966246455,-319.65365626,0.00010077,2]
[347622066,1735966246464,-500.0,0.00010077,2]
[347622067,1735966246475,-500.0,0.00010077,2]
[347622068,1735966246484,-500.0,0.00010077,2]
[347622069,1735966246493,-500.0,0.00010077,2]
[347622070,1735966246502,-500.0,0.00010077,2]
[347622071,1735966246511,-500.0,0.00010077,2]
[347622072,1735966246522,-1136.38411041,0.00010077,2]
[347622074,1735966375217,1135.0,0.00017,60]
[347622075,1735966424117,5285.56,0.00017,60]
[347622083,1735967033352,829.45264588,0.0002,120]
[347622084,1735967181133,1000.0,0.0002,120]
[347622085,1735967208140,-219.09673112,8.219e-05,2]
[347622087,1735967346014,-285.87326888,8.219e-05,2]
[347622088,1735967346038,-250.0,8.876e-05,2]
[347622089,1735967346062,-979.0,8.932e-05,2]
[347622090,1735967346086,-599.83,8.94e-05,2]
[347622091,1735967346108,-250.0,8.967e-05,2]
[347622092,1735967346129,-270.54,9.113e-05,2]
[347622093,1735967346151,-250.0,9.153e-05,2]
[347622094,1735967346172,-757.26,9.227e-05,2]
[347622095,1735967346193,-1000.0,9.273e-05,2]
[347622096,1735967346215,-800.0,9.3e-05,3]
[347622097,1735967346237,-1700.0,9.4e-05,3]
[347622098,1735967346258,-173.7346,9.429e-05,2]
[347622099,1735967346279,-151.92,9.429e-05,2]
[347622100,1735967346299,-151.53,9.429e-05,2]
[347622101,1735967346320,-504.19,9.43e-05,2]
[347622102,1735967346342,-496.03,9.43e-05,2]
[347622103,1735967346363,-505.25,9.43e-05,2]
[347622104,1735967346383,-503.82,9.43e-05,2]
[347622105,1735967346404,-496.31,9.43e-05,2]
[347622106,1735967346426,-4962.2163,9.43e-05,2]
[347622107,1735967346448,-12022.0761,9.43e-05,2]
[347622108,1735967346468,-1284.5558,9.43e-05,2]
[347622109,1735967346490,-2600.0,9.5e-05,3]
[347622110,1735967346511,-500.0,9.529e-05,2]
[347622111,1735967346533,-500.0,9.529e-05,2]
[347622112,1735967346554,-346.94,9.529e-05,2]
[347622113,1735967346575,-500.0,9.529e-05,2]
[347622114,1735967346596,-500.0,9.529e-05,2]
[347622115,1735967346617,-500.0,9.529e-05,2]
[347622116,1735967346640,-500.0,9.529e-05,2]
[347622117,1735967346660,-500.0,9.529e-05,2]
[347622118,1735967346680,-501.44023574,9.529e-05,2]
[347622119,1735967346701,-503.26251148,9.529e-05,2]
[347622120,1735967346723,-500.0,9.529e-05,2]
[347622121,1735967346744,-277.13053035,9.529e-05,2]
[347622122,1735967346766,-500.0,9.529e-05,2]
[347622123,1735967346786,-500.0,9.529e-05,2]
[347622124,1735967346807,-503.27145453,9.529e-05,2]
[347622125,1735967346828,-500.0,9.529e-05,2]
[347622126,1735967346848,-500.0,9.529e-05,2]
[347622127,1735967346869,-500.0,9.529e-05,2]
[347622128,1735967346892,-501.65455106,9.529e-05,2]
[347622129,1735967346915,-500.0,9.529e-05,2]
[347622130,1735967346939,-500.0,9.529e-05,2]
[347622131,1735967346960,-500.0,9.529e-05,2]
[347622132,1735967346980,-680.75,9.529e-05,2]
[347622133,1735967347002,-375.5385521,9.529e-05,2]
[347622134,1735967347026,-501.02287749,9.529e-05,2]
[347622135,1735967347047,-505.48820239,9.529e-05,2]
[347622136,1735967347067,-500.0,9.529e-05,2]
[347622137,1735967347088,-996.56,9.529e-05,2]
[347622138,1735967347110,-500.0,9.529e-05,2]
[347622139,1735967347131,-669.63,9.529e-05,2]
[347622140,1735967347153,-2082.3,9.529e-05,2]
[347622141,1735967347174,-500.0,9.529e-05,2]
[347622142,1735967347195,-1186.77,9.529e-05,2]
[347622143,1735967347217,-500.0,9.529e-05,2]
[347622144,1735967347239,-5623.37,9.529e-05,2]
[347622145,1735967347262,-500.0,9.529e-05,2]
[347622146,1735967347282,-3238.23,9.529e-05,2]
[347622147,1735967347303,-500.0,9.529e-05,2]
[347622148,1735967347325,-500.0,9.529e-05,2]
[347622149,1735967347347,-500.0,9.529e-05,2]
[347622150,1735967347369,-500.0,9.529e-05,2]
[347622151,1735967347390,-500.0,9.529e-05,2]
[347622152,1735967347410,-500.0,9.529e-05,2]
[347622153,1735967347431,-500.0,9.529e-05,2]
[347622154,1735967347452,-1537.22,9.529e-05,2]
[347622155,1735967347473,-508.5,9.529e-05,2]
[347622156,1735967347494,-500.0,9.529e-05,2]
[347622157,1735967347518,-3864.64,9.529e-05,2]
[347622158,1735967347539,-508.05,9.529e-05,2]
[347622159,1735967347562,-572.52,9.529e-05,2]
[347622160,1735967347583,-1120.55,9.529e-05,2]
[347622161,1735967347605,-500.0,9.529e-05,2]
[347622162,1735967347626,-500.0,9.529e-05,2]
[347622163,1735967347877,-500.0,9.529e-05,2]
[347622164,1735967347900,-500.0,9.529e-05,2]
[347622165,1735967347921,-500.0,9.529e-05,2]
[347622166,1735967347942,-500.0,9.529e-05,2]
[347622167,1735967347962,-500.0,9.529e-05,2]
[347622168,1735967347983,-500.0,9.529e-05,2]
[347622169,1735967348004,-500.0,9.529e-05,2]
[347622170,1735967348027,-500.0,9.529e-05,2]
[347622171,1735967348048,-500.0,9.529e-05,2]
[347622172,1735967348069,-500.0,9.529e-05,2]
[347622173,1735967348091,-1252.55,9.529e-05,2]
[347622174,1735967348113,-500.0,9.529e-05,2]
[347622175,1735967348135,-500.0,9.529e-05,2]
[347622176,1735967348156,-571.79,9.529e-05,2]
[347622177,1735967348178,-500.0,9.529e-05,2]
[347622178,1735967348199,-500.0,9.529e-05,2]
[347622179,1735967348219,-500.0,9.529e-05,2]
[347622180,1735967348239,-500.0,9.529e-05,2]
[347622181,1735967348262,-2417.23,9.529e-05,2]
[347622182,1735967348283,-500.0,9.529e-05,2]
[347622183,1735967348303,-500.0,9.529e-05,2]
[347622184,1735967348324,-591.73,9.529e-05,2]
[347622185,1735967348345,-500.0,9.529e-05,2]
[347622186,1735967348366,-563.51,9.529e-05,2]
[347622187,1735967348387,-500.0,9.529e-05,2]
[347622188,1735967348408,-509.51,9.529e-05,2]
[347622189,1735967348428,-531.44,9.529e-05,2]
[347622190,1735967348449,-500.0,9.529e-05,2]
[347622191,1735967348472,-500.0,9.529e-05,2]
[347622192,1735967348492,-701.84,9.529e-05,2]
[347622193,1735967348513,-500.0,9.529e-05,2]
[347622194,1735967348541,-500.0,9.529e-05,2]
[347622195,1735967348577,-765.15,9.529e-05,2]
[347622196,1735967348614,-733.89,9.529e-05,2]
[347622197,1735967348636,-703.31,9.529e-05,2]
[347622198,1735967348658,-1777.97,9.529e-05,2]
[347622199,1735967348682,-636.41,9.529e-05,2]
[347622200,1735967348705,-701.29,9.529e-05,2]
[347622201,1735967348731,-919.7,9.529e-05,2]
[347622202,1735967348752,-1936.19,9.529e-05,2]
[347622203,1735967348775,-1000.0,9.529e-05,2]
[347622204,1735967348810,-533.91,9.529e-05,2]
[347622205,1735967348853,-500.0,9.529e-05,2]
[347622206,1735967348889,-851.24,9.529e-05,2]
[347622207,1735967348912,-509.5,9.529e-05,2]
[347622208,1735967348935,-501.08,9.529e-05,2]
[347622209,1735967348959,-3500.0,9.6e-05,3]
[347622210,1735967348982,-167.07,9.651e-05,2]
[347622211,1735967349004,-4300.0,9.7e-05,3]
[347622212,1735967349031,-3098.71501598,9.701e-05,2]
[347622213,1735967352957,-19317.90458402,9.701e-05,2]
[347622214,1735967352980,-2500.0,9.702e-05,2]
[347622215,1735967353002,-5000.0,9.703e-05,2]
[347622216,1735967353025,-800.0,9.8e-05,3]
[347622217,1735967353048,-1168.7,9.801e-05,2]
[347622218,1735967353071,-724.91,9.801e-05,2]
[347622219,1735967353094,-500.0,9.801e-05,2]
[347622220,1735967353116,-500.0,9.801e-05,2]
[347622221,1735967353137,-567.12,9.801e-05,2]
[347622222,1735967353158,-1684.1,9.801e-05,2]
[347622223,1735967353179,-1070.47,9.801e-05,2]
[347622224,1735967353201,-553.54,9.801e-05,2]
[347622225,1735967353222,-522.73,9.801e-05,2]
[347622226,1735967353244,-585.38,9.801e-05,2]
[347622227,1735967353268,-553.06,9.801e-05,2]
[347622228,1735967353289,-527.11364616,9.802e-05,2]
[347622229,1735967353310,-500.0,9.802e-05,2]
[347622230,1735967353331,-500.0,9.802e-05,2]
[347622231,1735967353352,-500.0,9.802e-05,2]
[347622232,1735967353374,-500.0,9.802e-05,2]
[347622233,1735967353395,-500.0,9.802e-05,2]
[347622234,1735967353416,-500.0,9.802e-05,2]
[347622235,1735967353437,-500.0,9.802e-05,2]
[347622236,1735967353458,-500.0,9.802e-05,2]
[347622237,1735967353481,-500.0,9.802e-05,2]
[347622238,1735967353502,-150.35856114,9.802e-05,2]
[347622239,1735967353525,-500.0,9.802e-05,2]
[347622240,1735967353547,-381.64993429,9.802e-05,2]
[347622241,1735967353568,-500.0,9.802e-05,2]
[347622242,1735967353589,-500.0,9.802e-05,2]
[347622243,1735967353612,-500.0,9.802e-05,2]
[347622244,1735967353633,-500.0,9.802e-05,2]
[347622245,1735967353654,-502.38732398,9.802e-05,2]
[347622246,1735967353675,-500.0,9.802e-05,2]
[347622247,1735967353697,-500.0,9.802e-05,2]
[347622248,1735967353718,-502.74749015,9.802e-05,2]
[347622249,1735967353741,-500.0,9.802e-05,2]
[347622250,1735967353763,-500.0,9.802e-05,2]
[347622251,1735967353784,-500.0,9.802e-05,2]
[347622252,1735967353804,-500.0,9.802e-05,2]
[347622253,1735967353825,-698.46,9.802e-05,2]
[347622254,1735967353845,-388.96124199,9.802e-05,2]
[347622255,1735967353865,-500.0,9.802e-05,2]
[347622256,1735967353886,-500.0,9.802e-05,2]
[347622257,1735967353919,-500.0,9.802e-05,2]
[347622258,1735967353940,-500.0,9.802e-05,2]
[347622259,1735967353961,-500.0,9.802e-05,2]
[347622260,1735967353982,-501.7907926,9.802e-05,2]
[347622261,1735967354004,-500.0,9.802e-05,2]
[347622262,1735967354026,-500.0,9.802e-05,2]
[347622263,1735967354048,-500.0,9.802e-05,2]
[347622264,1735967354070,-500.0,9.802e-05,2]
[347622265,1735967354093,-328.23403283,9.802e-05,2]
[347622266,1735967354114,-7012.15,9.802e-05,2]
[347622267,1735967354135,-500.0,9.802e-05,2]
[347622268,1735967354156,-502.83437302,9.802e-05,2]
[347622269,1735967354176,-501.22629495,9.802e-05,2]
[347622270,1735967354197,-500.0,9.802e-05,2]
[347622271,1735967354219,-551.06,9.802e-05,2]
[347622272,1735967354241,-500.0,9.802e-05,2]
[347622273,1735967354263,-505.81777384,9.802e-05,2]
[347622274,1735967354284,-500.0,9.802e-05,2]
[347622275,1735967354307,-500.0,9.802e-05,2]
[347622276,1735967354328,-611.38327341,9.802e-05,2]
[347622277,1735967354629,-500.0,9.802e-05,2]
[347622278,1735967354653,-500.0,9.802e-05,2]
[347622279,1735967354675,-500.0,9.802e-05,2]
[347622280,1735967354697,-500.0,9.802e-05,2]
[347622281,1735967354719,-500.0,9.802e-05,2]
[347622282,1735967354744,-504.69844689,9.802e-05,2]
[347622283,1735967354767,-500.0,9.802e-05,2]
[347622284,1735967354790,-2103.84,9.802e-05,2]
[347622285,1735967354814,-500.0,9.802e-05,2]
[347622286,1735967354836,-500.0,9.802e-05,2]
[347622287,1735967354858,-500.0,9.802e-05,2]
[347622288,1735967354880,-500.0,9.802e-05,2]
[347622289,1735967354901,-392.204183,9.802e-05,2]
[347622290,1735967354923,-167.70408266,9.802e-05,2]
[347622291,1735967354949,-500.0,9.802e-05,2]
[347622292,1735967354972,-503.59328416,9.802e-05,2]
[347622293,1735967354995,-500.0,9.802e-05,2]
[347622294,1735967355018,-504.25399019,9.802e-05,2]
[347622295,1735967355041,-502.73382178,9.802e-05,2]
[347622296,1735967355064,-500.0,9.802e-05,2]
[347622297,1735967355086,-500.0,9.802e-05,2]
[347622298,1735967355110,-292.608143,9.802e-05,2]
[347622299,1735967355134,-1677.99,9.802e-05,2]
[347622300,1735967355156,-500.0,9.802e-05,2]
[347622301,1735967355178,-500.0,9.802e-05,2]
[347622302,1735967355200,-500.0,9.802e-05,2]
[347622303,1735967355222,-500.0,9.802e-05,2]
[347622304,1735967355243,-225.20259752,9.802e-05,2]
[347622305,1735967355267,-500.0,9.802e-05,2]
[347622306,1735967355290,-1671.86,9.802e-05,2]
[347622307,1735967355313,-809.09,9.802e-05,2]
[347622308,1735967355335,-502.55622211,9.802e-05,2]
[347622309,1735967355357,-500.0,9.802e-05,2]
[347622310,1735967355381,-500.0,9.802e-05,2]
[347622311,1735967355404,-506.1602761,9.802e-05,2]
[347622312,1735967355426,-513.46802713,9.802e-05,2]
[347622313,1735967355450,-702.41,9.802e-05,2]
[347622314,1735967355473,-503.46535919,9.802e-05,2]
[347622315,1735967355496,-235.34708801,9.802e-05,2]
[347622316,1735967355519,-534.03933873,9.802e-05,2]
[347622317,1735967355548,-1101.32,9.802e-05,2]
[347622318,1735967355572,-500.0,9.802e-05,2]
[347622319,1735967355596,-533.73,9.802e-05,2]
[347622320,1735967355620,-500.0,9.802e-05,2]
[347622321,1735967355642,-500.0,9.802e-05,2]
[347622322,1735967355665,-500.0,9.802e-05,2]
[347622323,1735967355687,-500.0,9.802e-05,2]
[347622324,1735967355712,-500.0,9.802e-05,2]
[347622325,1735967355736,-504.6828454,9.802e-05,2]
[347622326,1735967355757,-503.20324233,9.802e-05,2]
[347622327,1735967355779,-1644.08,9.802e-05,2]
[347622328,1735967355802,-501.66396077,9.802e-05,2]
[347622329,1735967355822,-500.0,9.802e-05,2]
[347622330,1735967355844,-500.0,9.802e-05,2]
[347622331,1735967355867,-410.38,9.802e-05,2]
[347622332,1735967355891,-733.62576865,9.802e-05,2]
[347622336,1735967432382,-513.76,8.219e-05,2]
[347622337,1735967432392,-1000.0,9.298e-05,2]
[347622338,1735967432402,-694.7,9.529e-05,2]
[347622339,1735967432411,-1200.36,9.529e-05,2]
[347622340,1735967432420,-500.0,9.529e-05,2]
[347622341,1735967432429,-500.0,9.801e-05,2]
[347622342,1735967432439,-669.36,9.801e-05,2]
[347622343,1735967432448,-300.0,9.801e-05,2]
[347622344,1735967432457,-500.0,9.801e-05,2]
[347622345,1735967432467,-500.0,9.801e-05,2]
[347622346,1735967432476,-528.1,9.801e-05,2]
[347622347,1735967432485,-34166.10716798,9.802e-05,2]
[347622348,1735967432494,-457.35423135,9.802e-05,2]
[347622349,1735967432504,-500.0,9.802e-05,2]
[347622350,1735967432513,-2625.82,9.802e-05,2]
[347622351,1735967432522,-1228.76,9.802e-05,2]
[347622352,1735967432531,-500.0,9.802e-05,2]
[347622353,1735967432540,-500.0,9.802e-05,2]
[347622354,1735967432549,-1170.26,9.802e-05,2]
[347622355,1735967432559,-300.0875967,9.802e-05,2]
[347622356,1735967432568,-201.58755187,9.802e-05,2]
[347622357,1735967432577,-500.0,9.802e-05,2]
[347622358,1735967432586,-500.0,9.802e-05,2]
[347622359,1735967432596,-500.0,9.802e-05,2]
[347622360,1735967432605,-4.404642,9.802e-05,2]
[347622361,1735967432617,-496.94232606,9.802e-05,2]
[347622362,1735967432626,-500.0,9.802e-05,2]
[347622363,1735967432635,-2.16727394,9.802e-05,2]
[347622364,1735967432647,-378.80765556,9.802e-05,2]
[347622365,1735967432656,-500.0,9.802e-05,2]
[347622366,1735967432666,-500.0,9.802e-05,2]
[347622367,1735967432675,-503.28550196,9.802e-05,2]
[347622368,1735967432685,-500.0,9.802e-05,2]
[347622369,1735967432694,-495.12333648,9.802e-05,2]
[347622370,1735967432713,-4.87666352,9.802e-05,2]
[347622371,1735967432723,-498.22333648,9.802e-05,2]
[347622372,1735967432735,-1.77666352,9.802e-05,2]
[347622373,1735967432745,-500.0,9.802e-05,2]
[347622374,1735967432758,-491.06333648,9.802e-05,2]
[347622375,1735967432780,-12.92593363,9.802e-05,2]
[347622376,1735967432789,-501.5665129,9.802e-05,2]
[347622377,1735967432800,-500.0,9.802e-05,2]
[347622378,1735967432809,-500.0,9.802e-05,2]
[347622379,1735967432818,-500.0,9.802e-05,2]
[347622381,1735967432829,-507.70477751,9.802e-05,2]
[347622382,1735967432839,-502.4200824,9.802e-05,2]
[347622383,1735967432848,-1166.94571973,9.802e-05,2]
[347622384,1735967432860,-258.32428027,9.802e-05,2]
[347622385,1735967432869,-500.0,9.802e-05,2]
[347622386,1735967432879,-500.0,9.802e-05,2]
[347622388,1735967432889,-500.0,9.802e-05,2]
[347622390,1735967432899,-500.0,9.802e-05,2]
[347622391,1735967432907,-500.0,9.802e-05,2]
[347622393,1735967432917,-500.0,9.802e-05,2]
[347622395,1735967432926,-500.0,9.802e-05,2]
[347622396,1735967432936,-500.0,9.802e-05,2]
[347622398,1735967432945,-500.0,9.802e-05,2]
[347622399,1735967432955,-615.357389,9.802e-05,2]
[347622400,1735967435407,-0.6859,9.802e-05,2]